fUSD/lending_fUSD_20250503
["ID","MTS","AMOUNT","RATE_DAILY","PERIOD"]
[359678843,1746245441600,-450.0,0.00019579,2]
[359678844,1746245441611,-450.0,0.00019579,2]
[359678845,1746245441621,-450.0,0.00019579,2]
[359678846,1746245441631,-450.0,0.00019579,2]
[359678847,1746245441640,-450.0,0.00019579,2]
[359678848,1746245441650,-450.0,0.00019579,2]
[359678849,1746245441659,-483.0835328,0.00019579,2]
[359678850,1746245441669,-450.0,0.00019579,2]
[359678851,1746245441678,-450.0,0.00019579,2]
[359678852,1746245441688,-450.0,0.00019579,2]
[359678853,1746245441698,-450.0,0.00019579,2]
[359678854,1746245441707,-450.0,0.00019579,2]
[359678855,1746245441717,-450.0,0.00019579,2]
[359678856,1746245441727,-624.59,0.00019579,2]
[359678857,1746245441737,-450.0,0.00019579,2]
[359678858,1746245441746,-450.0,0.00019579,2]
[359678859,1746245441755,-450.0,0.00019579,2]
[359678860,1746245441765,-450.0,0.00019579,2]
[359678861,1746245441775,-450.0,0.00019579,2]
[359678862,1746245441784,-450.0,0.00019579,2]
[359678863,1746245441794,-450.0,0.00019579,2]
[359678864,1746245441803,-450.0,0.00019579,2]
[359678865,1746245441813,-450.0,0.00019579,2]
[359678866,1746245441823,-450.0,0.00019579,2]
[359678867,1746245441833,-450.0,0.00019579,2]
[359678868,1746245441842,-317.40863215,0.00019579,2]
[359678869,1746245441852,-450.0,0.00019579,2]
[359678870,1746245441862,-331.60792449,0.00019579,2]
[359678871,1746245441872,-450.0,0.00019579,2]
[359678872,1746245441881,-450.0,0.00019579,2]
[359678873,1746245441891,-450.0,0.00019579,2]
[359678874,1746245441901,-450.0,0.00019579,2]
[359678875,1746245441910,-450.0,0.00019579,2]
[359678876,1746245441920,-450.0,0.00019579,2]
[359678877,1746245441929,-450.0,0.00019579,2]
[359678878,1746245441939,-450.0,0.00019579,2]
[359678879,1746245441948,-450.0,0.00019579,2]
[359678880,1746245441959,-450.0,0.00019579,2]
[359678881,1746245441968,-3973.74,0.00019579,2]
[359678882,1746245441979,-450.0,0.00019579,2]
[359678883,1746245441988,-450.0,0.00019579,2]
[359678884,1746245441998,-450.0,0.00019579,2]
[359678885,1746245442008,-450.0,0.00019579,2]
[359678886,1746245442018,-450.0,0.00019579,2]
[359678887,1746245442027,-450.0,0.00019579,2]
[359678888,1746245442037,-450.0,0.00019579,2]
[359678889,1746245442047,-450.0,0.00019579,2]
[359678890,1746245442057,-482.91,0.00019579,2]
[359678891,1746245442066,-450.0,0.00019579,2]
[359678892,1746245442076,-450.0,0.00019579,2]
[359678893,1746245442086,-775.19,0.00019579,2]
[359678894,1746245442096,-450.0,0.00019579,2]
[359678895,1746245442105,-956.33,0.00019579,2]
[359678896,1746245442115,-5577.23,0.00019579,2]
[359678897,1746245442125,-450.0,0.00019579,2]
[359678898,1746245442135,-450.0,0.00019579,2]
[359678899,1746245442145,-450.0,0.00019579,2]
[359678900,1746245442155,-450.0,0.00019579,2]
[359678902,1746245442164,-610.14,0.00019579,2]
[359678903,1746245442174,-450.0,0.00019579,2]
[359678904,1746245442183,-450.0,0.00019579,2]
[359678905,1746245442193,-450.0,0.00019579,2]
[359678906,1746245442202,-5216.27,0.00019579,2]
[359678907,1746245442212,-450.0,0.00019579,2]
[359678908,1746245442222,-450.0,0.00019579,2]
[359678909,1746245442231,-450.0,0.00019579,2]
[359678910,1746245442241,-528.12811078,0.00019579,2]
[359678911,1746245442251,-450.0,0.00019579,2]
[359678912,1746245442260,-586.69,0.00019579,2]
[359678914,1746245442269,-450.0,0.00019579,2]
[359678916,1746245442279,-418.70387019,0.00019579,2]
[359678917,1746245442289,-465.22,0.00019579,2]
[359678918,1746245442299,-450.0,0.00019579,2]
[359678919,1746245442308,-450.0,0.00019579,2]
[359678920,1746245442317,-450.0,0.00019579,2]
[359678921,1746245442327,-450.0,0.00019579,2]
[359678922,1746245442336,-450.0,0.00019579,2]
[359678923,1746245442346,-450.0,0.00019579,2]
[359678924,1746245442355,-450.0,0.00019579,2]
[359678925,1746245442364,-450.0,0.00019579,2]
[359678926,1746245442374,-450.0,0.00019579,2]
[359678927,1746245442385,-573.13,0.00019579,2]
[359678928,1746245442395,-450.0,0.00019579,2]
[359678929,1746245442404,-450.0,0.00019579,2]
[359678930,1746245442414,-450.0,0.00019579,2]
[359678931,1746245442425,-649.53,0.00019579,2]
[359678932,1746245442435,-450.0,0.00019579,2]
[359678933,1746245442445,-450.0,0.00019579,2]
[359678934,1746245442455,-450.0,0.00019579,2]
[359678935,1746245442470,-2099.82,0.00019579,2]
[359678936,1746245442480,-450.0,0.00019579,2]
[359678937,1746245442492,-450.0,0.00019579,2]
[359678938,1746245442503,-450.0,0.00019579,2]
[359678939,1746245442512,-450.0,0.00019579,2]
[359678940,1746245442522,-450.0,0.00019579,2]
[359678941,1746245442532,-450.0,0.00019579,2]
[359678942,1746245442544,-111044.15,0.00019579,2]
[359678943,1746245442553,-450.0,0.00019579,2]
[359678944,1746245442563,-450.0,0.00019579,2]
[359678945,1746245442572,-450.0,0.00019579,2]
[359678946,1746245442582,-521.16,0.00019579,2]
[359678947,1746245442591,-450.0,0.00019579,2]
[359678948,1746245442601,-486.12125161,0.00019579,2]
[359678949,1746245442611,-450.0,0.00019579,2]
[359678950,1746245442621,-639.79,0.00019579,2]
[359678951,1746245442631,-498.67,0.00019579,2]
[359678952,1746245442640,-450.0,0.00019579,2]
[359678953,1746245442650,-450.0,0.00019579,2]
[359678954,1746245442660,-1136.7,0.00019579,2]
[359678955,1746245442669,-1337.8,0.00019579,2]
[359678956,1746245442679,-450.0,0.00019579,2]
[359678957,1746245442688,-1821.65,0.00019579,2]
[359678958,1746245442697,-450.0,0.00019579,2]
[359678959,1746245442707,-450.0,0.00019579,2]
[359678960,1746245442717,-546.21,0.00019579,2]
[359678961,1746245442726,-498.21,0.00019579,2]
[359678962,1746245442736,-395.39490778,0.00019579,2]
[359678963,1746245442745,-450.0,0.00019579,2]
[359678964,1746245442755,-450.0,0.00019579,2]
[359678965,1746245442765,-450.0,0.00019579,2]
[359678966,1746245442774,-450.0,0.00019579,2]
[359678968,1746245442784,-450.0,0.00019579,2]
[359678970,1746245442793,-450.0,0.00019579,2]
[359678972,1746245442803,-450.0,0.00019579,2]
[359678974,1746245442812,-450.0,0.00019579,2]
[359678976,1746245442822,-450.0,0.00019579,2]
[359678978,1746245442831,-813.85,0.00019579,2]
[359678980,1746245442841,-450.0,0.00019579,2]
[359678982,1746245442851,-450.0,0.00019579,2]
[359678984,1746245442861,-450.0,0.00019579,2]
[359678986,1746245442870,-503.93,0.00019579,2]
[359678988,1746245442880,-450.0,0.00019579,2]
[359678990,1746245442889,-977.01,0.00019579,2]
[359678992,1746245442899,-492.77701312,0.00019579,2]
[359678993,1746245442908,-450.0,0.00019579,2]
[359678995,1746245442918,-491.81617772,0.00019579,2]
[359678997,1746245442927,-503.54,0.00019579,2]
[359678999,1746245442937,-3121.57,0.00019579,2]
[359679001,1746245442946,-450.0,0.00019579,2]
[359679003,1746245442956,-1457.91,0.00019579,2]
[359679005,1746245442966,-450.0,0.00019579,2]
[359679007,1746245442975,-554.56,0.00019579,2]
[359679009,1746245442985,-488.1697104,0.00019579,2]
[359679011,1746245442994,-1495.39,0.00019579,2]
[359679013,1746245443003,-450.0,0.00019579,2]
[359679015,1746245443013,-471.32532163,0.00019579,2]
[359679018,1746245443024,-502.93,0.00019579,2]
[359679019,1746245443034,-481.37865192,0.00019579,2]
[359679022,1746245443043,-450.0,0.00019579,2]
[359679023,1746245443052,-2956.25,0.00019579,2]
[359679026,1746245443062,-450.0,0.00019579,2]
[359679028,1746245443072,-476.36,0.00019579,2]
[359679030,1746245443081,-450.0,0.00019579,2]
[359679032,1746245443090,-575.98,0.00019579,2]
[359679034,1746245443100,-450.0,0.00019579,2]
[359679036,1746245443110,-563.74,0.00019579,2]
[359679038,1746245443119,-568.95,0.00019579,2]
[359679040,1746245443128,-450.0,0.00019579,2]
[359679042,1746245443138,-450.0,0.00019579,2]
[359679044,1746245443147,-450.0,0.00019579,2]
[359679046,1746245443156,-450.0,0.00019579,2]
[359679048,1746245443166,-291.31094517,0.00019579,2]
[359679050,1746245443175,-795.47,0.00019579,2]
[359679052,1746245443184,-450.0,0.00019579,2]
[359679054,1746245443193,-450.0,0.00019579,2]
[359679056,1746245443203,-450.0,0.00019579,2]
[359679058,1746245443212,-450.0,0.00019579,2]
[359679060,1746245443222,-800.87,0.00019579,2]
[359679062,1746245443231,-450.0,0.00019579,2]
[359679064,1746245443240,-450.0,0.00019579,2]
[359679066,1746245443249,-755.94,0.00019579,2]
[359679068,1746245443258,-476.41,0.00019579,2]
[359679070,1746245443267,-450.0,0.00019579,2]
[359679072,1746245443276,-620.66,0.00019579,2]
[359679074,1746245443285,-450.0,0.00019579,2]
[359679076,1746245443294,-3829.16,0.00019579,2]
[359679078,1746245443303,-450.0,0.00019579,2]
[359679080,1746245443312,-450.0,0.00019579,2]
[359679082,1746245443322,-450.0,0.00019579,2]
[359679084,1746245443331,-457.49,0.00019579,2]
[359679086,1746245443340,-462.15,0.00019579,2]
[359679088,1746245443349,-450.0,0.00019579,2]
[359679089,1746245443358,-450.0,0.00019579,2]
[359679091,1746245443367,-536.74,0.00019579,2]
[359679093,1746245443376,-450.0,0.00019579,2]
[359679095,1746245443386,-1001.0,0.0001958,2]
[359679097,1746245443396,-1001.0,0.0001958,2]
[359679099,1746245443405,-450.0,0.0001958,2]
[359679101,1746245443414,-450.0,0.0001958,2]
[359679103,1746245443424,-469.51628982,0.0001958,2]
[359679105,1746245443433,-450.0,0.0001958,2]
[359679108,1746245443443,-450.0,0.0001958,2]
[359679110,1746245443453,-450.0,0.0001958,2]
[359679112,1746245443466,-450.0,0.0001958,2]
[359679114,1746245443476,-450.0,0.0001958,2]
[359679121,1746245443533,-450.0,0.0001958,2]
[359679123,1746245443543,-450.0,0.0001958,2]
[359679125,1746245443552,-458.28250635,0.0001958,2]
[359679127,1746245443560,-450.0,0.0001958,2]
[359679128,1746245443569,-503.16,0.0001958,2]
[359679131,1746245443579,-450.0,0.0001958,2]
[359679133,1746245443588,-771.25,0.0001958,2]
[359679135,1746245443597,-450.0,0.0001958,2]
[359679137,1746245443607,-450.0,0.0001958,2]
[359679139,1746245443617,-450.0,0.0001958,2]
[359679141,1746245443627,-450.0,0.0001958,2]
[359679143,1746245443636,-1035.02,0.0001958,2]
[359679145,1746245443645,-300.0,0.0001958,2]
[359679147,1746245443654,-450.0,0.0001958,2]
[359679149,1746245443663,-450.0,0.0001958,2]
[359679151,1746245443673,-578.85,0.0001958,2]
[359679153,1746245443683,-450.0,0.0001958,2]
[359679155,1746245443692,-450.0,0.0001958,2]
[359679157,1746245443701,-450.0,0.0001958,2]
[359679159,1746245443710,-450.0,0.0001958,2]
[359679161,1746245443719,-473.26684363,0.0001958,2]
[359679163,1746245443732,-469.79272155,0.0001958,2]
[359679165,1746245443741,-450.0,0.0001958,2]
[359679167,1746245443751,-761.28,0.0001958,2]
[359679169,1746245443760,-450.0,0.0001958,2]
[359679171,1746245443770,-478.5,0.0001958,2]
[359679173,1746245443779,-450.0,0.0001958,2]
[359679175,1746245443789,-454.53686391,0.0001958,2]
[359679177,1746245443798,-450.0,0.0001958,2]
[359679179,1746245443807,-472.15560293,0.0001958,2]
[359679181,1746245443816,-450.0,0.0001958,2]
[359679183,1746245443826,-450.0,0.0001958,2]
[359679185,1746245443835,-450.0,0.0001958,2]
[359679187,1746245443844,-450.0,0.0001958,2]
[359679189,1746245443854,-450.0,0.0001958,2]
[359679191,1746245443863,-2538.96,0.0001958,2]
[359679193,1746245443873,-450.0,0.0001958,2]
[359679195,1746245443882,-450.0,0.0001958,2]
[359679197,1746245443892,-450.0,0.0001958,2]
[359679199,1746245443901,-450.0,0.0001958,2]
[359679201,1746245443910,-450.0,0.0001958,2]
[359679203,1746245443919,-450.0,0.0001958,2]
[359679205,1746245443928,-563.81,0.0001958,2]
[359679207,1746245443937,-450.96282215,0.0001958,2]
[359679209,1746245443947,-1036.18,0.0001958,2]
[359679211,1746245443956,-496.78,0.0001958,2]
[359679213,1746245443966,-450.0,0.0001958,2]
[359679215,1746245443975,-450.0,0.0001958,2]
[359679217,1746245443984,-450.0,0.0001958,2]
[359679219,1746245443993,-567.27,0.0001958,2]
[359679221,1746245444003,-450.0,0.0001958,2]
[359679223,1746245444012,-450.0,0.0001958,2]
[359679225,1746245444021,-545.5843728,0.0001958,2]
[359679227,1746245444031,-450.0,0.0001958,2]
[359679229,1746245444040,-450.0,0.0001958,2]
[359679231,1746245444050,-205.70456391,0.0001958,2]
[359679233,1746245444060,-1031.0,0.0001958,2]
[359679235,1746245444069,-543.03,0.0001958,2]
[359679237,1746245444079,-450.0,0.0001958,2]
[359679239,1746245444089,-450.0,0.0001958,2]
[359679241,1746245444098,-477.03160307,0.0001958,2]
[359679243,1746245444107,-450.0,0.0001958,2]
[359679244,1746245444117,-450.0,0.0001958,2]
[359679246,1746245444125,-551.37,0.0001958,2]
[359679247,1746245444135,-522.96,0.0001958,2]
[359679249,1746245444144,-1377.3,0.0001958,2]
[359679251,1746245444153,-450.0,0.0001958,2]
[359679253,1746245444162,-682.9,0.0001958,2]
[359679255,1746245444172,-450.0,0.0001958,2]
[359679257,1746245444181,-450.0,0.0001958,2]
[359679259,1746245444191,-670.04,0.0001958,2]
[359679261,1746245444200,-464.14593802,0.0001958,2]
[359679263,1746245444210,-482.9,0.0001958,2]
[359679265,1746245444219,-528.59,0.0001958,2]
[359679267,1746245444228,-450.0,0.0001958,2]
[359679269,1746245444237,-720.67,0.0001958,2]
[359679271,1746245444247,-711.7,0.0001958,2]
[359679273,1746245444256,-450.0,0.0001958,2]
[359679275,1746245444265,-450.0,0.0001958,2]
[359679277,1746245444274,-635.99,0.0001958,2]
[359679279,1746245444283,-566.29,0.0001958,2]
[359679281,1746245444292,-1649.13,0.0001958,2]
[359679283,1746245444301,-466.47,0.0001958,2]
[359679285,1746245444310,-1120.02,0.0001958,2]
[359679287,1746245444319,-560.78,0.0001958,2]
[359679289,1746245444328,-450.0,0.0001958,2]
[359679291,1746245444338,-450.0,0.0001958,2]
[359679292,1746245444347,-723.78,0.0001958,2]
[359679294,1746245444357,-450.0,0.0001958,2]
[359679296,1746245444367,-450.0,0.0001958,2]
[359679298,1746245444377,-365.0454029,0.0001958,2]
[359679300,1746245444386,-450.0,0.0001958,2]
[359679302,1746245444396,-494.63,0.0001958,2]
[359679304,1746245444405,-450.0,0.0001958,2]
[359679306,1746245444415,-450.0,0.0001958,2]
[359679308,1746245444424,-450.0,0.0001958,2]
[359679310,1746245444433,-606.11,0.0001958,2]
[359679312,1746245444442,-1373.22,0.0001958,2]
[359679314,1746245444452,-477.01,0.0001958,2]
[359679316,1746245444465,-579.1,0.0001958,2]
[359679318,1746245444474,-450.0,0.0001958,2]
[359679320,1746245444483,-450.0,0.0001958,2]
[359679322,1746245444492,-1579.43,0.0001958,2]
[359679324,1746245444503,-936.69,0.0001958,2]
[359679326,1746245444512,-651.72,0.0001958,2]
[359679328,1746245444522,-784.21,0.0001958,2]
[359679330,1746245444532,-450.0,0.0001958,2]
[359679332,1746245444541,-450.0,0.0001958,2]
[359679334,1746245444550,-450.0,0.0001958,2]
[359679336,1746245444559,-450.0,0.0001958,2]
[359679338,1746245444569,-3254.51,0.0001958,2]
[359679340,1746245444578,-450.0,0.0001958,2]
[359679342,1746245444588,-450.0,0.0001958,2]
[359679344,1746245444596,-4104.92,0.0001958,2]
[359679345,1746245444606,-714.46,0.0001958,2]
[359679347,1746245444615,-902.26,0.0001958,2]
[359679349,1746245444624,-450.0,0.0001958,2]
[359679351,1746245444634,-450.0,0.0001958,2]
[359679353,1746245444644,-450.0,0.0001958,2]
[359679355,1746245444653,-4493.69,0.0001958,2]
[359679357,1746245444662,-450.0,0.0001958,2]
[359679359,1746245444671,-450.0,0.0001958,2]
[359679361,1746245444680,-682.8,0.0001958,2]
[359679363,1746245444690,-81628.11,0.0001958,2]
[359679365,1746245444700,-471.37,0.0001958,2]
[359679367,1746245444709,-564.42,0.0001958,2]
[359679369,1746245444719,-2377.62,0.0001958,2]
[359679371,1746245444728,-4831.13,0.0001958,2]
[359679373,1746245444737,-1042.01,0.0001958,2]
[359679374,1746245444747,-26518.28,0.0001958,2]
[359679375,1746245444756,-1744.67,0.0001958,2]
[359679376,1746245444765,-2144.86,0.0001958,2]
[359679377,1746245444774,-14869.86,0.0001958,2]
[359679378,1746245444784,-452.2335742,0.00019581,2]
[359679379,1746245444793,-450.0,0.00019581,2]
[359679380,1746245444802,-6657.94230322,0.00019619,2]
[359679381,1746245444811,-6657.94230322,0.00019666,2]
[359679382,1746245444823,-999.0,0.00019671,2]
[359679383,1746245444833,-203.55075268,0.00019694,2]
[359679384,1746245444843,-150.0,0.00019699,2]
[359679385,1746245444852,-150.0,0.00019708,2]
[359679386,1746245444861,-6657.94230322,0.00019713,2]
[359679387,1746245444871,-150.0,0.00019713,2]
[359679388,1746245444881,-150.0,0.00019716,2]
[359679389,1746245444890,-1000.0,0.00019716,2]
[359679390,1746245444900,-150.0,0.00019728,2]
[359679391,1746245444909,-150.0,0.00019742,2]
[359679392,1746245444919,-150.0,0.00019745,2]
[359679393,1746245444929,-150.0,0.00019747,2]
[359679394,1746245444939,-150.0,0.00019757,2]
[359679395,1746245444949,-6657.94230322,0.0001976,2]
[359679396,1746245444962,-150.0,0.00019765,2]
[359679397,1746245444972,-151.0,0.00019766,2]
[359679398,1746245444983,-151.0,0.00019766,2]
[359679399,1746245444993,-151.0,0.00019767,2]
[359679400,1746245445004,-151.0,0.00019767,2]
[359679401,1746245445013,-151.0,0.00019768,2]
[359679402,1746245445023,-150.0,0.00019768,2]
[359679403,1746245445033,-150.0,0.00019769,2]
[359679404,1746245445043,-166.2109942,0.00019774,2]
[359679405,1746245445052,-150.0,0.00019788,2]
[359679406,1746245445062,-150.0,0.00019788,2]
[359679407,1746245445072,-500.0,0.00019789,2]
[359679408,1746245445081,-150.0,0.00019789,2]
[359679409,1746245445091,-150.0,0.00019795,2]
[359679410,1746245445101,-297.4074534,0.00019799,2]
[359679411,1746245445111,-156.54222221,0.000198,2]
[359679412,1746245445120,-11903.88005019,0.000198,2]
[359679413,1746245445130,-150.0,0.00019803,2]
[359679414,1746245445139,-150.0,0.00019805,2]
[359679415,1746245445150,-6657.94230322,0.00019806,2]
[359679416,1746245445160,-348.75959596,0.0001981,2]
[359679417,1746245445170,-150.0,0.00019811,2]
[359679418,1746245445179,-150.0,0.00019816,2]
[359679419,1746245445188,-150.0,0.00019817,2]
[359679420,1746245445201,-156.5422222,0.00019825,2]
[359679421,1746245445210,-150.0,0.00019826,2]
[359679424,1746245445220,-150.0,0.00019826,2]
[359679425,1746245445229,-1000.0,0.00019827,2]
[359679426,1746245445238,-150.0,0.00019829,2]
[359679427,1746245445247,-150.0,0.00019834,2]
[359679428,1746245445256,-287.0,0.00019836,2]
[359679429,1746245445265,-150.0,0.00019838,2]
[359679430,1746245445275,-150.0,0.00019839,2]
[359679431,1746245445284,-2000.0,0.0001984,2]
[359679432,1746245445293,-200.0,0.0001984,2]
[359679433,1746245445302,-156.5422222,0.0001985,2]
[359679434,1746245445311,-150.0,0.00019851,2]
[359679435,1746245445320,-450.0,0.00019852,2]
[359679436,1746245445329,-450.0,0.00019852,2]
[359679437,1746245445339,-450.0,0.00019852,2]
[359679438,1746245445348,-450.0,0.00019852,2]
[359679439,1746245445357,-450.0,0.00019852,2]
[359679440,1746245445366,-450.0,0.00019852,2]
[359679441,1746245445375,-450.0,0.00019852,2]
[359679442,1746245445384,-450.0,0.00019852,2]
[359679443,1746245445393,-450.0,0.00019852,2]
[359679444,1746245445403,-4356.18,0.00019852,2]
[359679445,1746245445412,-450.0,0.00019852,2]
[359679446,1746245445421,-476.17,0.00019852,2]
[359679447,1746245445430,-985.77,0.00019852,2]
[359679448,1746245445439,-450.0,0.00019852,2]
[359679449,1746245445449,-450.0,0.00019852,2]
[359679450,1746245445460,-450.0,0.00019852,2]
[359679451,1746245445470,-450.0,0.00019852,2]
[359679452,1746245445479,-1555.07,0.00019852,2]
[359679453,1746245445489,-846.333231,0.00019852,2]
[359679454,1746245445499,-450.0,0.00019852,2]
[359679455,1746245445508,-450.0,0.00019852,2]
[359679456,1746245445517,-617.722084,0.00019852,2]
[359679457,1746245445527,-450.0,0.00019853,2]
[359679458,1746245445537,-450.0,0.00019853,2]
[359679459,1746245445546,-450.0,0.00019853,2]
[359679460,1746245445555,-450.0,0.00019853,2]
[359679461,1746245445567,-450.0,0.00019853,2]
[359679462,1746245445576,-506.0,0.00019853,2]
[359679463,1746245445586,-450.0,0.00019853,2]
[359679464,1746245445595,-450.0,0.00019853,2]
[359679465,1746245445604,-450.0,0.00019853,2]
[359679466,1746245445613,-450.0,0.00019853,2]
[359679467,1746245445622,-450.0,0.00019853,2]
[359679468,1746245445631,-450.0,0.00019853,2]
[359679469,1746245445641,-450.0,0.00019853,2]
[359679470,1746245445650,-450.0,0.00019853,2]
[359679471,1746245445660,-450.0,0.00019853,2]
[359679472,1746245445669,-450.0,0.00019853,2]
[359679473,1746245445678,-813.27,0.00019853,2]
[359679474,1746245445688,-450.0,0.00019853,2]
[359679475,1746245445697,-450.0,0.00019853,2]
[359679476,1746245445708,-450.0,0.00019853,2]
[359679477,1746245445717,-450.0,0.00019853,2]
[359679478,1746245445726,-450.0,0.00019853,2]
[359679479,1746245445736,-450.0,0.00019853,2]
[359679480,1746245445745,-450.0,0.00019853,2]
[359679481,1746245445755,-450.0,0.00019853,2]
[359679483,1746245445764,-450.0,0.00019853,2]
[359679485,1746245445773,-450.0,0.00019853,2]
[359679487,1746245445782,-450.0,0.00019853,2]
[359679489,1746245445791,-450.0,0.00019853,2]
[359679491,1746245445801,-450.0,0.00019853,2]
[359679493,1746245445810,-624.59,0.00019853,2]
[359679495,1746245445819,-450.0,0.00019853,2]
[359679497,1746245445828,-450.0,0.00019853,2]
[359679499,1746245445838,-450.0,0.00019853,2]
[359679501,1746245445847,-450.0,0.00019853,2]
[359679503,1746245445857,-450.0,0.00019853,2]
[359679505,1746245445865,-450.0,0.00019853,2]
[359679507,1746245445875,-450.0,0.00019853,2]
[359679509,1746245445884,-450.0,0.00019853,2]
[359679511,1746245445894,-450.0,0.00019853,2]
[359679513,1746245445904,-450.0,0.00019853,2]
[359679515,1746245445913,-450.0,0.00019853,2]
[359679517,1746245445923,-450.0,0.00019853,2]
[359679519,1746245445932,-450.0,0.00019853,2]
[359679521,1746245445942,-450.0,0.00019853,2]
[359679523,1746245445951,-450.0,0.00019853,2]
[359679525,1746245445962,-450.0,0.00019853,2]
[359679527,1746245445971,-450.0,0.00019853,2]
[359679529,1746245445981,-450.0,0.00019853,2]
[359679531,1746245445994,-450.0,0.00019853,2]
[359679533,1746245446003,-450.0,0.00019853,2]
[359679535,1746245446012,-450.0,0.00019853,2]
[359679537,1746245446022,-450.0,0.00019853,2]
[359679539,1746245446033,-450.0,0.00019853,2]
[359679541,1746245446043,-450.0,0.00019853,2]
[359679543,1746245446052,-450.0,0.00019853,2]
[359679545,1746245446062,-450.0,0.00019853,2]
[359679546,1746245446072,-450.0,0.00019853,2]
[359679547,1746245446082,-450.0,0.00019853,2]
[359679548,1746245446092,-450.0,0.00019853,2]
[359679549,1746245446102,-450.0,0.00019853,2]
[359679550,1746245446112,-482.91,0.00019853,2]
[359679551,1746245446121,-450.0,0.00019853,2]
[359679552,1746245446131,-450.0,0.00019853,2]
[359679553,1746245446140,-775.19,0.00019853,2]
[359679554,1746245446150,-450.0,0.00019853,2]
[359679555,1746245446160,-150.0,0.00019853,2]
[359679556,1746245446170,-956.33,0.00019853,2]
[359679557,1746245446179,-5577.23,0.00019853,2]
[359679558,1746245446189,-450.0,0.00019853,2]
[359679559,1746245446199,-450.0,0.00019853,2]
[359679560,1746245446209,-450.0,0.00019853,2]
[359679561,1746245446219,-450.0,0.00019853,2]
[359679562,1746245446228,-610.14,0.00019853,2]
[359679563,1746245446238,-450.0,0.00019853,2]
[359679564,1746245446247,-450.0,0.00019853,2]
[359679565,1746245446257,-5216.27,0.00019853,2]
[359679566,1746245446266,-450.0,0.00019853,2]
[359679567,1746245446276,-450.0,0.00019853,2]
[359679568,1746245446285,-450.0,0.00019853,2]
[359679569,1746245446295,-450.0,0.00019853,2]
[359679570,1746245446305,-586.69,0.00019853,2]
[359679571,1746245446315,-450.0,0.00019853,2]
[359679572,1746245446325,-465.22,0.00019853,2]
[359679573,1746245446334,-450.0,0.00019853,2]
[359679574,1746245446343,-450.0,0.00019853,2]
[359679575,1746245446352,-450.0,0.00019853,2]
[359679576,1746245446362,-450.0,0.00019853,2]
[359679577,1746245446371,-450.0,0.00019853,2]
[359679578,1746245446380,-450.0,0.00019853,2]
[359679579,1746245446390,-450.0,0.00019853,2]
[359679580,1746245446399,-450.0,0.00019853,2]
[359679581,1746245446409,-450.0,0.00019853,2]
[359679582,1746245446418,-573.13,0.00019853,2]
[359679583,1746245446427,-450.0,0.00019853,2]